Workbook

Sheet 附件1
A1: 附件1：
A2: 青岛市即墨区移风店镇人民政府2023年部门预算表
A4: 一、 | B4: 2023年部门预算收支总表
A5: 二、 | B5: 2023年部门预算收入总表
A6: 三、 | B6: 2023年部门预算支出总表
A7: 四、 | B7: 2023年部门预算财政拨款收支总表
A8: 五、 | B8: 2023年部门预算一般公共预算财政拨款支出表
A9: 六、 | B9: 2023年部门预算一般公共预算财政拨款基本支出表 （部门经济分类）
A10: 七、 | B10: 2023年部门预算一般公共预算财政拨款基本支出表 （政府经济分类）
A11: 八、 | B11: 2023年部门预算政府性基金预算财政拨款支出表
A12: 九、 | B12: 2023年部门预算国有资本经营预算财政拨款支出表
A13: 十、 | B13: 2023年部门预算财政拨款“三公”经费支出表

Sheet 1_部门收支总表
A1: 表1：
A2: 2023年部门预算收支总表
A3: 部门：青岛市即墨区移风店镇人民政府 | C3: 预算年度：2023 | D3: 金额单位：万元
A4: 收 入 | C4: 支 出
A5: 项 目 | B5: 2023年预算 | C5: 项 目 | D5: 2023年预算
A6: 一、一般公共预算拨款收入 | B6: 5375.81 | C6: 一、人员经费 | D6: 3547.49
A7: 二、政府性基金预算拨款收入 | C7: 二、公用经费 | D7: 267.24
A8: 三、国有资本经营预算拨款收入 | C8: 三、其他运转类 | D8: 1561.08
A9: 四、财政专户管理资金收入 | C9: 落实教师待遇补助—落实公办及集体幼儿园非公办教职工待遇 | D9: 229.08
A10: 五、事业收入 | C10: 保障正常运转资金 | D10: 1332.00
A11: 六、事业单位经营收入
A12: 七、上级补助收入
A13: 八、附属单位上缴收入
A14: 九、其他收入
C23: 四、特定目标类
A29: 本 年 收 入 合 计 | B29: =+B6+B12+B15+B16+B17+B18+B19+B20+B21+B22+B7 -> 5375.81 | C29: 本 年 支 出 合 计 | D29: =+D6+D7+D23+D8 -> 5375.81

Sheet 2-部门预算收入总表
A1: 表2：
A2: 2023年部门预算收入总表
A3: 部门：青岛市即墨区移风店镇人民政府 | J3: 预算年度：2023 | L3: 金额单位：万元
A4: 序号 | B4: 功能分类科目 | D4: 合计 | E4: 本年收入 | M4: 上年结转
B5: 科目编码 | C5: 科目名称 | E5: 小计 | F5: 财政拨款收入 | G5: 财政专户收入 | H5: 事业收入 | I5: 经营收入 | J5: 上级补助收入 | K5: 附属单位上缴收入 | L5: 其他收入
A6: 栏次 | B6: 1 | C6: 2 | D6: 3 | E6: 4 | F6: 5 | G6: 6 | H6: 7 | I6: 8 | J6: 9 | K6: 10 | L6: 11 | M6: 12
A7: 1 | C7: 合计 | D7: =D8+D16+D38+D11 -> 5375.81 | E7: =E8+E16+E38+E11 -> 5375.81 | F7: =F8+F16+F38+F11 -> 5375.81 | G7: 0 | H7: 0 | I7: 0 | J7: 0 | K7: 0 | L7: 0 | M7: 0
A8: 1 | B8: 201 | C8: 一般公共服务支出 | D8: 4367.97 | E8: 4367.97 | F8: 4367.97 | G8: 0 | H8: 0 | I8: 0 | J8: 0 | K8: 0 | L8: 0 | M8: 0
A9: 2 | B9: 20103 | C9: 政府办公厅（室）及相关机构事务 | D9: 4367.97 | E9: 4367.97 | F9: 4367.97 | G9: 0 | H9: 0 | I9: 0 | J9: 0 | K9: 0 | L9: 0 | M9: 0
A10: 3 | B10: 2010301 | C10: 行政运行 | D10: 4367.97 | E10: 4367.97 | F10: 4367.97 | G10: 0 | H10: 0 | I10: 0 | J10: 0 | K10: 0 | L10: 0 | M10: 0
A11: 4 | B11: 205 | C11: 教育支出 | D11: 229.08 | E11: 229.08 | F11: 229.08 | G11: 0 | H11: 0 | I11: 0 | J11: 0 | K11: 0 | L11: 0 | M11: 0
A12: 5 | B12: 20502 | C12: 普通教育 | D12: 229.08 | E12: 229.08 | F12: 229.08 | G12: 0 | H12: 0 | I12: 0 | J12: 0 | K12: 0 | L12: 0 | M12: 0
A13: 6 | B13: 2050201 | C13: 学前教育 | D13: 229.08 | E13: 229.08 | F13: 229.08 | G13: 0 | H13: 0 | I13: 0 | J13: 0 | K13: 0 | L13: 0 | M13: 0
A14: 7 | B14: 20509 | C14: 教育费附加安排的支出 | D14: 0 | E14: 0 | F14: 0 | G14: 0 | H14: 0 | I14: 0 | J14: 0 | K14: 0 | L14: 0 | M14: 0
A15: 8 | B15: 2050999 | C15: 其他教育费附加安排的支出 | D15: 0 | E15: 0 | F15: 0 | G15: 0 | H15: 0 | I15: 0 | J15: 0 | K15: 0 | L15: 0 | M15: 0
A16: 9 | B16: 208 | C16: 社会保障和就业支出 | D16: 520.88 | E16: 520.88 | F16: 520.88 | G16: 0 | H16: 0 | I16: 0 | J16: 0 | K16: 0 | L16: 0 | M16: 0
A17: 10 | B17: 20805 | C17: 行政事业单位养老支出 | D17: 520.88 | E17: 520.88 | F17: 520.88 | G17: 0 | H17: 0 | I17: 0 | J17: 0 | K17: 0 | L17: 0 | M17: 0
A18: 11 | B18: 2080505 | C18: 机关事业单位基本养老保险缴费支出 | D18: 347.25 | E18: 347.25 | F18: 347.25 | G18: 0 | H18: 0 | I18: 0 | J18: 0 | K18: 0 | L18: 0 | M18: 0
A19: 12 | B19: 2080506 | C19: 机关事业单位职业年金缴费支出 | D19: 173.63 | E19: 173.63 | F19: 173.63 | G19: 0 | H19: 0 | I19: 0 | J19: 0 | K19: 0 | L19: 0 | M19: 0
A20: 13 | B20: 211 | C20: 节能环保支出 | D20: 0 | E20: 0 | F20: 0 | G20: 0 | H20: 0 | I20: 0 | J20: 0 | K20: 0 | L20: 0 | M20: 0
A21: 14 | B21: 21104 | C21: 自然生态保护 | D21: 0 | E21: 0 | F21: 0 | G21: 0 | H21: 0 | I21: 0 | J21: 0 | K21: 0 | L21: 0 | M21: 0
A22: 15 | B22: 2110402 | C22: 农村环境保护 | D22: 0 | E22: 0 | F22: 0 | G22: 0 | H22: 0 | I22: 0 | J22: 0 | K22: 0 | L22: 0 | M22: 0
A23: 16 | B23: 212 | C23: 城乡社区支出 | D23: 0 | E23: 0 | F23: 0 | G23: 0 | H23: 0 | I23: 0 | J23: 0 | K23: 0 | L23: 0 | M23: 0
A24: 17 | B24: 21208 | C24: 国有土地使用权出让收入安排的支出 | D24: 0 | E24: 0 | F24: 0 | G24: 0 | H24: 0 | I24: 0 | J24: 0 | K24: 0 | L24: 0 | M24: 0
A25: 18 | B25: 2120801 | C25: 征地和拆迁补偿支出 | D25: 0 | E25: 0 | F25: 0 | G25: 0 | H25: 0 | I25: 0 | J25: 0 | K25: 0 | L25: 0 | M25: 0
A26: 19 | B26: 2120803 | C26: 城市建设支出 | D26: 0 | E26: 0 | F26: 0 | G26: 0 | H26: 0 | I26: 0 | J26: 0 | K26: 0 | L26: 0 | M26: 0
A27: 20 | B27: 2120804 | C27: 农村基础设施建设支出 | D27: 0 | E27: 0 | F27: 0 | G27: 0 | H27: 0 | I27: 0 | J27: 0 | K27: 0 | L27: 0 | M27: 0
A28: 21 | B28: 21299 | C28: 其他城乡社区支出 | D28: 0 | E28: 0 | F28: 0 | G28: 0 | H28: 0 | I28: 0 | J28: 0 | K28: 0 | L28: 0 | M28: 0
A29: 22 | B29: 2129999 | C29: 其他城乡社区支出 | D29: 0 | E29: 0 | F29: 0 | G29: 0 | H29: 0 | I29: 0 | J29: 0 | K29: 0 | L29: 0 | M29: 0
A30: 23 | B30: 213 | C30: 农林水支出 | D30: 0 | E30: 0 | F30: 0 | G30: 0 | H30: 0 | I30: 0 | J30: 0 | K30: 0 | L30: 0 | M30: 0
A31: 24 | B31: 21305 | C31: 巩固脱贫衔接乡村振兴 | D31: 0 | E31: 0 | F31: 0 | G31: 0 | H31: 0 | I31: 0 | J31: 0 | K31: 0 | L31: 0 | M31: 0
A32: 25 | B32: 2130599 | C32: 其他巩固脱贫衔接乡村振兴支出 | D32: 0 | E32: 0 | F32: 0 | G32: 0 | H32: 0 | I32: 0 | J32: 0 | K32: 0 | L32: 0 | M32: 0
A33: 26 | B33: 21307 | C33: 农村综合改革 | D33: 0 | E33: 0 | F33: 0 | G33: 0 | H33: 0 | I33: 0 | J33: 0 | K33: 0 | L33: 0 | M33: 0
A34: 27 | B34: 2130705 | C34: 对村民委员会和村党支部的补助 | D34: 0 | E34: 0 | F34: 0 | G34: 0 | H34: 0 | I34: 0 | J34: 0 | K34: 0 | L34: 0 | M34: 0
A35: 28 | B35: 2130799 | C35: 其他农村综合改革支出 | D35: 0 | E35: 0 | F35: 0 | G35: 0 | H35: 0 | I35: 0 | J35: 0 | K35: 0 | L35: 0 | M35: 0
A36: 29 | B36: 21399 | C36: 其他农林水支出 | D36: 0 | E36: 0 | F36: 0 | G36: 0 | H36: 0 | I36: 0 | J36: 0 | K36: 0 | L36: 0 | M36: 0
A37: 30 | B37: 2139999 | C37: 其他农林水支出 | D37: 0 | E37: 0 | F37: 0 | G37: 0 | H37: 0 | I37: 0 | J37: 0 | K37: 0 | L37: 0 | M37: 0
A38: 31 | B38: 221 | C38: 住房保障支出 | D38: 257.88 | E38: 257.88 | F38: 257.88 | G38: 0 | H38: 0 | I38: 0 | J38: 0 | K38: 0 | L38: 0 | M38: 0
A39: 32 | B39: 22102 | C39: 住房改革支出 | D39: 257.88 | E39: 257.88 | F39: 257.88 | G39: 0 | H39: 0 | I39: 0 | J39: 0 | K39: 0 | L39: 0 | M39: 0
A40: 33 | B40: 2210201 | C40: 住房公积金 | D40: 257.88 | E40: 257.88 | F40: 257.88 | G40: 0 | H40: 0 | I40: 0 | J40: 0 | K40: 0 | L40: 0 | M40: 0

Sheet 3-部门支出总表
A1: 表3：
A2: 2023年部门预算支出总表
A3: 部门：青岛市即墨区移风店镇人民政府 | F3: 预算年度：2023 | H3: 金额单位：万元
A4: 序号 | B4: 支出功能分类科目 | D4: 本年支出合计 | E4: 基本支出 | F4: 项目支出 | G4: 经营支出 | H4: 上缴上级支出 | I4: 对附属单位补助支出
B5: 科目编码 | C5: 科目名称
A6: 栏次 | B6: 1 | C6: 2 | D6: 3 | E6: 4 | F6: 5 | G6: 6 | H6: 7 | I6: 8
A7: 1 | C7: 合计 | D7: =D8+D11+D16+D20+D23+D30+D38 -> 5375.81 | E7: =E8+E11+E16+E20+E23+E30+E38 -> 3814.73 | F7: 1561.08 | G7: 0 | H7: 0 | I7: 0
A8: 2 | B8: 201 | C8: 一般公共服务支出 | D8: 4367.97 | E8: 3035.97 | F8: 1332 | G8: 0 | H8: 0 | I8: 0
A9: 3 | B9: 20103 | C9: 政府办公厅（室）及相关机构事务 | D9: 4367.97 | E9: 3035.97 | F9: 1332 | G9: 0 | H9: 0 | I9: 0
A10: 4 | B10: 2010301 | C10: 行政运行 | D10: 4367.97 | E10: 3035.97 | F10: 1332 | G10: 0 | H10: 0 | I10: 0
A11: 5 | B11: 205 | C11: 教育支出 | D11: 229.08 | E11: 0 | F11: 229.08 | G11: 0 | H11: 0 | I11: 0
A12: 6 | B12: 20502 | C12: 普通教育 | D12: 229.08 | E12: 0 | F12: 229.08 | G12: 0 | H12: 0 | I12: 0
A13: 7 | B13: 2050201 | C13: 学前教育 | D13: 229.08 | E13: 0 | F13: 229.08 | G13: 0 | H13: 0 | I13: 0
A14: 8 | B14: 20509 | C14: 教育费附加安排的支出 | D14: 0 | E14: 0 | F14: 0 | G14: 0 | H14: 0 | I14: 0
A15: 9 | B15: 2050999 | C15: 其他教育费附加安排的支出 | D15: 0 | E15: 0 | F15: 0 | G15: 0 | H15: 0 | I15: 0
A16: 10 | B16: 208 | C16: 社会保障和就业支出 | D16: 520.88 | E16: 520.88 | F16: 0 | G16: 0 | H16: 0 | I16: 0
A17: 11 | B17: 20805 | C17: 行政事业单位养老支出 | D17: 520.88 | E17: 520.88 | F17: 0 | G17: 0 | H17: 0 | I17: 0
A18: 12 | B18: 2080505 | C18: 机关事业单位基本养老保险缴费支出 | D18: 347.25 | E18: 347.25 | F18: 0 | G18: 0 | H18: 0 | I18: 0
A19: 13 | B19: 2080506 | C19: 机关事业单位职业年金缴费支出 | D19: 173.63 | E19: 173.63 | G19: 0 | H19: 0 | I19: 0
A20: 14 | B20: 211 | C20: 节能环保支出 | D20: 0 | E20: 0 | F20: 0 | G20: 0 | H20: 0 | I20: 0
A21: 15 | B21: 21104 | C21: 自然生态保护 | D21: 0 | E21: 0 | F21: 0 | G21: 0 | H21: 0 | I21: 0
A22: 16 | B22: 2110402 | C22: 农村环境保护 | D22: 0 | E22: 0 | F22: 0 | G22: 0 | H22: 0 | I22: 0
A23: 17 | B23: 212 | C23: 城乡社区支出 | D23: 0 | E23: 0 | F23: 0 | G23: 0 | H23: 0 | I23: 0
A24: 18 | B24: 21208 | C24: 国有土地使用权出让收入安排的支出 | D24: 0 | E24: 0 | F24: 0 | G24: 0 | H24: 0 | I24: 0
A25: 19 | B25: 2120801 | C25: 征地和拆迁补偿支出 | D25: 0 | E25: 0 | F25: 0 | G25: 0 | H25: 0 | I25: 0
A26: 20 | B26: 2120803 | C26: 城市建设支出 | D26: 0 | E26: 0 | F26: 0 | G26: 0 | H26: 0 | I26: 0
A27: 21 | B27: 2120804 | C27: 农村基础设施建设支出 | D27: 0 | E27: 0 | F27: 0 | G27: 0 | H27: 0 | I27: 0
A28: 22 | B28: 21299 | C28: 其他城乡社区支出 | D28: 0 | E28: 0 | F28: 0 | G28: 0 | H28: 0 | I28: 0
A29: 23 | B29: 2129999 | C29: 其他城乡社区支出 | D29: 0 | E29: 0 | F29: 0 | G29: 0 | H29: 0 | I29: 0
A30: 24 | B30: 213 | C30: 农林水支出 | D30: 0 | E30: 0 | F30: 0 | G30: 0 | H30: 0 | I30: 0
A31: 25 | B31: 21305 | C31: 巩固脱贫衔接乡村振兴 | D31: 0 | E31: 0 | F31: 0 | G31: 0 | H31: 0 | I31: 0
A32: 26 | B32: 2130599 | C32: 其他巩固脱贫衔接乡村振兴支出 | D32: 0 | E32: 0 | F32: 0 | G32: 0 | H32: 0 | I32: 0
A33: 27 | B33: 21307 | C33: 农村综合改革 | D33: 0 | E33: 0 | F33: 0 | G33: 0 | H33: 0 | I33: 0
A34: 28 | B34: 2130705 | C34: 对村民委员会和村党支部的补助 | D34: 0 | E34: 0 | F34: 0 | G34: 0 | H34: 0 | I34: 0
A35: 29 | B35: 2130799 | C35: 其他农村综合改革支出 | D35: 0 | E35: 0 | F35: 0 | G35: 0 | H35: 0 | I35: 0
A36: 30 | B36: 21399 | C36: 其他农林水支出 | D36: 0 | E36: 0 | F36: 0 | G36: 0 | H36: 0 | I36: 0
A37: 31 | B37: 2139999 | C37: 其他农林水支出 | D37: 0 | E37: 0 | F37: 0 | G37: 0 | H37: 0 | I37: 0
A38: 32 | B38: 221 | C38: 住房保障支出 | D38: 257.88 | E38: 257.88 | F38: 0 | G38: 0 | H38: 0 | I38: 0
A39: 33 | B39: 22102 | C39: 住房改革支出 | D39: 257.88 | E39: 257.88 | F39: 0 | G39: 0 | H39: 0 | I39: 0
A40: 34 | B40: 2210201 | C40: 住房公积金 | D40: 257.88 | E40: 257.88 | F40: 0 | G40: 0 | H40: 0 | I40: 0

Sheet 4_财政拨款收支总表
A1: 表4：
A2: 2023年部门预算财政拨款收支总表
A3: 部门：青岛市即墨区移风店镇人民政府 | C3: 预算年度：2023 | D3: 金额单位：万元
A4: 收 入 | C4: 支 出
A5: 项 目 | B5: 2023年预算 | C5: 项 目 | D5: 2023年预算
A6: 一、一般公共预算拨款收入 | B6: 5375.81 | C6: 一、人员经费 | D6: 3547.49
A7: 二、政府性基金预算拨款收入 | C7: 二、公用经费 | D7: 267.24
A8: 三、国有资本经营预算拨款收入 | B8: 0.00 | C8: 三、其他运转类 | D8: 1561.08
C9: 落实教师待遇补助—落实公办及集体幼儿园非公办教职工待遇 | D9: 229.08
C10: 保障正常运转资金 | D10: 1332.00
B12: =SUM(B13:B14) -> 0.00
C23: 四、特定目标类
A29: 本 年 收 入 合 计 | B29: =+B6+B12+B15+B16+B17+B18+B19+B20+B21+B22+B7 -> 5375.81 | C29: 本 年 支 出 合 计 | D29: =+D6+D7+D23+D8 -> 5375.81

Sheet 5-一般公共预算支出表
A1: 表5：
A2: 2023年部门预算一般公共预算财政拨款支出表
A3: 部门：青岛市即墨区移风店镇人民政府 | F3: 预算年度：2023 | H3: 金额单位：万元
A4: 序号 | B4: 支出功能分类科目 | D4: 合计 | E4: 基本支出 | H4: 项目支出
B5: 科目编码 | C5: 科目名称 | E5: 小计 | F5: 人员经费 | G5: 公用经费
A6: 栏次 | B6: 1 | C6: 2 | D6: 3 | E6: 4 | F6: 5 | G6: 6 | H6: 7
A7: 1 | C7: 合计 | D7: =D8+D11+D16+D34 -> 5375.81 | E7: =E8+E16+E34 -> 3814.73 | F7: =F8+F16+F34 -> 3547.49 | G7: =G8 -> 267.24 | H7: =H8+H11 -> 1561.08
A8: 2 | B8: 201 | C8: 一般公共服务支出 | D8: =E8+H8 -> 4367.97 | E8: =F8+G8 -> 3035.97 | F8: 2768.73 | G8: 267.24 | H8: 1332
A9: 3 | B9: 20103 | C9: 政府办公厅（室）及相关机构事务 | D9: =E9+H9 -> 4367.97 | E9: =F9+G9 -> 3035.97 | F9: 2768.73 | G9: 267.24 | H9: 1332
A10: 4 | B10: 2010301 | C10: 行政运行 | D10: =E10+H10 -> 4367.97 | E10: =F10+G10 -> 3035.97 | F10: 2768.73 | G10: 267.24 | H10: 1332
A11: 5 | B11: 205 | C11: 教育支出 | D11: 229.08 | E11: 0 | F11: 0 | G11: 0 | H11: 229.08
A12: 6 | B12: 20502 | C12: 普通教育 | D12: 229.08 | E12: 0 | F12: 0 | G12: 0 | H12: 229.08
A13: 7 | B13: 2050201 | C13: 学前教育 | D13: 229.08 | E13: 0 | F13: 0 | G13: 0 | H13: 229.08
A14: 8 | B14: 20509 | C14: 教育费附加安排的支出 | D14: 0 | E14: 0 | F14: 0 | G14: 0 | H14: 0
A15: 9 | B15: 2050999 | C15: 其他教育费附加安排的支出 | D15: 0 | E15: 0 | F15: 0 | G15: 0 | H15: 0
A16: 10 | B16: 208 | C16: 社会保障和就业支出 | D16: 520.88 | E16: 520.88 | F16: 520.88 | G16: 0 | H16: 0
A17: 11 | B17: 20805 | C17: 行政事业单位养老支出 | D17: 520.88 | E17: 520.88 | F17: 520.88 | G17: 0 | H17: 0
A18: 12 | B18: 2080505 | C18: 机关事业单位基本养老保险缴费支出 | D18: 347.25 | E18: 347.25 | F18: 347.25 | G18: 0 | H18: 0
A19: 13 | B19: 2080506 | C19: 机关事业单位职业年金缴费支出 | D19: 173.63 | E19: 173.63 | F19: 173.63 | G19: 0 | H19: 0
A20: 14 | B20: 211 | C20: 节能环保支出 | D20: 0 | E20: 0 | F20: 0 | G20: 0 | H20: 0
A21: 15 | B21: 21104 | C21: 自然生态保护 | D21: 0 | E21: 0 | F21: 0 | G21: 0 | H21: 0
A22: 16 | B22: 2110402 | C22: 农村环境保护 | D22: 0 | E22: 0 | F22: 0 | G22: 0 | H22: 0
A23: 17 | B23: 212 | C23: 城乡社区支出 | D23: 0 | E23: 0 | F23: 0 | G23: 0 | H23: 0
A24: 18 | B24: 21299 | C24: 其他城乡社区支出 | D24: 0 | E24: 0 | F24: 0 | G24: 0 | H24: 0
A25: 19 | B25: 2129999 | C25: 其他城乡社区支出 | D25: 0 | E25: 0 | F25: 0 | G25: 0 | H25: 0
A26: 20 | B26: 213 | C26: 农林水支出 | D26: 0 | E26: 0 | F26: 0 | G26: 0 | H26: 0
A27: 21 | B27: 21305 | C27: 巩固脱贫衔接乡村振兴 | D27: 0 | E27: 0 | F27: 0 | G27: 0 | H27: 0
A28: 22 | B28: 2130599 | C28: 其他巩固脱贫衔接乡村振兴支出 | D28: 0 | E28: 0 | F28: 0 | G28: 0 | H28: 0
A29: 23 | B29: 21307 | C29: 农村综合改革 | D29: 0 | E29: 0 | F29: 0 | G29: 0 | H29: 0
A30: 24 | B30: 2130705 | C30: 对村民委员会和村党支部的补助 | D30: 0 | E30: 0 | F30: 0 | G30: 0 | H30: 0
A31: 25 | B31: 2130799 | C31: 其他农村综合改革支出 | D31: 0 | E31: 0 | F31: 0 | G31: 0 | H31: 0
A32: 26 | B32: 21399 | C32: 其他农林水支出 | D32: 0 | E32: 0 | F32: 0 | G32: 0 | H32: 0
A33: 27 | B33: 2139999 | C33: 其他农林水支出 | D33: 0 | E33: 0 | F33: 0 | G33: 0 | H33: 0
A34: 28 | B34: 221 | C34: 住房保障支出 | D34: 257.88 | E34: 257.88 | F34: 257.88 | G34: 0 | H34: 0
A35: 29 | B35: 22102 | C35: 住房改革支出 | D35: 257.88 | E35: 257.88 | F35: 257.88 | G35: 0 | H35: 0
A36: 30 | B36: 2210201 | C36: 住房公积金 | D36: 257.88 | E36: 257.88 | F36: 257.88 | G36: 0 | H36: 0

Sheet 6-一般公共预算基本支出（部门经济分类）
A1: 表6：
A2: 2023年部门预算一般公共预算财政拨款基本支出表（部门经济分类）
A3: 部门：青岛市即墨区移风店镇人民政府 | I3: 预算年度：2023 | K3: 金额单位：万元
A4: 序号 | B4: 科目编码 | C4: 科目名称 | D4: 支出项目 | G4: 资金性质
D5: 合计 | E5: 基本支出 | G5: 合计 | H5: 一般公共预算 | I5: 政府性基金预算 | J5: 国有资本经营预算 | K5: 财政专户核拨 | L5: 单位资金
E6: 人员经费 | F6: 日常公用经费
A7: 栏次 | B7: 1 | C7: 2 | D7: 3 | E7: 4 | F7: 5 | G7: 6 | H7: 7 | I7: 8 | J7: 9 | K7: 10 | L7: 11
A8: 1 | C8: 合计 | D8: 3814.73 | E8: 3547.49 | F8: 267.24 | G8: 3814.73 | H8: 3814.73 | I8: 0 | J8: 0 | K8: 0 | L8: 0
A9: 2 | B9: 301 | C9: 工资福利支出 | D9: 3530.77 | E9: 3530.77 | F9: 0 | G9: 3530.77 | H9: 3530.77 | I9: 0 | J9: 0 | K9: 0 | L9: 0
A10: 3 | B10: 30101 | C10: 基本工资 | D10: 605.82 | E10: 605.82 | F10: 0 | G10: 605.82 | H10: 605.82 | I10: 0 | J10: 0 | K10: 0 | L10: 0
A11: 4 | B11: 30102 | C11: 津贴补贴 | D11: 1489.05 | E11: 1489.05 | F11: 0 | G11: 1489.05 | H11: 1489.05 | I11: 0 | J11: 0 | K11: 0 | L11: 0
A12: 5 | B12: 30103 | C12: 奖金 | D12: 20.76 | E12: 20.76 | F12: 0 | G12: 20.76 | H12: 20.76 | I12: 0 | J12: 0 | K12: 0 | L12: 0
A13: 6 | B13: 30106 | C13: 伙食补助费 | D13: 0 | E13: 0 | F13: 0 | G13: 0 | H13: 0 | I13: 0 | J13: 0 | K13: 0 | L13: 0
A14: 7 | B14: 30107 | C14: 绩效工资 | D14: 369.42 | E14: 369.42 | F14: 0 | G14: 369.42 | H14: 369.42 | I14: 0 | J14: 0 | K14: 0 | L14: 0
A15: 8 | B15: 30108 | C15: 机关事业单位基本养老保险缴费 | D15: 347.26 | E15: 347.26 | F15: 0 | G15: 347.26 | H15: 347.26 | I15: 0 | J15: 0 | K15: 0 | L15: 0
A16: 9 | B16: 30109 | C16: 职业年金缴费 | D16: 173.63 | E16: 173.63 | F16: 0 | G16: 173.63 | H16: 173.63 | I16: 0 | J16: 0 | K16: 0 | L16: 0
A17: 10 | B17: 30110 | C17: 职工基本医疗保险缴费 | D17: 249.59 | E17: 249.59 | F17: 0 | G17: 249.59 | H17: 249.59 | I17: 0 | J17: 0 | K17: 0 | L17: 0
A18: 11 | B18: 30111 | C18: 公务员医疗补助缴费 | D18: 0 | E18: 0 | F18: 0 | G18: 0 | H18: 0 | I18: 0 | J18: 0 | K18: 0 | L18: 0
A19: 12 | B19: 30112 | C19: 其他社会保障缴费 | D19: 17.36 | E19: 17.36 | F19: 0 | G19: 17.36 | H19: 17.36 | I19: 0 | J19: 0 | K19: 0 | L19: 0
A20: 13 | B20: 30113 | C20: 住房公积金 | D20: 257.88 | E20: 257.88 | F20: 0 | G20: 257.88 | H20: 257.88 | I20: 0 | J20: 0 | K20: 0 | L20: 0
A21: 14 | B21: 30114 | C21: 医疗费 | D21: 0 | E21: 0 | F21: 0 | G21: 0 | H21: 0 | I21: 0 | J21: 0 | K21: 0 | L21: 0
A22: 15 | B22: 30199 | C22: 其他工资福利支出 | D22: 0 | E22: 0 | F22: 0 | G22: 0 | H22: 0 | I22: 0 | J22: 0 | K22: 0 | L22: 0
A23: 16 | B23: 302 | C23: 商品和服务支出 | D23: 267.24 | E23: 0 | F23: 267.24 | G23: 267.24 | H23: 267.24 | I23: 0 | J23: 0 | K23: 0 | L23: 0
A24: 17 | B24: 30201 | C24: 办公费 | D24: 156.6 | E24: 0 | F24: 156.6 | G24: 156.6 | H24: 156.6 | I24: 0 | J24: 0 | K24: 0 | L24: 0
A25: 18 | B25: 30202 | C25: 印刷费 | D25: 0 | E25: 0 | F25: 0 | G25: 0 | H25: 0 | I25: 0 | J25: 0 | K25: 0 | L25: 0
A26: 19 | B26: 30203 | C26: 咨询费 | D26: 0 | E26: 0 | F26: 0 | G26: 0 | H26: 0 | I26: 0 | J26: 0 | K26: 0 | L26: 0
A27: 20 | B27: 30204 | C27: 手续费 | D27: 0 | E27: 0 | F27: 0 | G27: 0 | H27: 0 | I27: 0 | J27: 0 | K27: 0 | L27: 0
A28: 21 | B28: 30205 | C28: 水费 | D28: 0 | E28: 0 | F28: 0 | G28: 0 | H28: 0 | I28: 0 | J28: 0 | K28: 0 | L28: 0
A29: 22 | B29: 30206 | C29: 电费 | D29: 0 | E29: 0 | F29: 0 | G29: 0 | H29: 0 | I29: 0 | J29: 0 | K29: 0 | L29: 0
A30: 23 | B30: 30207 | C30: 邮电费 | D30: 0 | E30: 0 | F30: 0 | G30: 0 | H30: 0 | I30: 0 | J30: 0 | K30: 0 | L30: 0
A31: 24 | B31: 30208 | C31: 取暖费 | D31: 0 | E31: 0 | F31: 0 | G31: 0 | H31: 0 | I31: 0 | J31: 0 | K31: 0 | L31: 0
A32: 25 | B32: 30209 | C32: 物业管理费 | D32: 0 | E32: 0 | F32: 0 | G32: 0 | H32: 0 | I32: 0 | J32: 0 | K32: 0 | L32: 0
A33: 26 | B33: 30211 | C33: 差旅费 | D33: 0 | E33: 0 | F33: 0 | G33: 0 | H33: 0 | I33: 0 | J33: 0 | K33: 0 | L33: 0
A34: 27 | B34: 30212 | C34: 因公出国（境）费用 | D34: 0 | E34: 0 | F34: 0 | G34: 0 | H34: 0 | I34: 0 | J34: 0 | K34: 0 | L34: 0
A35: 28 | B35: 3021201 | C35: 教学科研人员因公出国（境）费 | D35: 0 | E35: 0 | F35: 0 | G35: 0 | H35: 0 | I35: 0 | J35: 0 | K35: 0 | L35: 0
A36: 29 | B36: 3021202 | C36: 其他因公出国（境）费 | D36: 0 | E36: 0 | F36: 0 | G36: 0 | H36: 0 | I36: 0 | J36: 0 | K36: 0 | L36: 0
A37: 30 | B37: 30213 | C37: 维修（护）费 | D37: 0 | E37: 0 | F37: 0 | G37: 0 | H37: 0 | I37: 0 | J37: 0 | K37: 0 | L37: 0
A38: 31 | B38: 30214 | C38: 租赁费 | D38: 0 | E38: 0 | F38: 0 | G38: 0 | H38: 0 | I38: 0 | J38: 0 | K38: 0 | L38: 0
A39: 32 | B39: 30215 | C39: 会议费 | D39: 0 | E39: 0 | F39: 0 | G39: 0 | H39: 0 | I39: 0 | J39: 0 | K39: 0 | L39: 0
A40: 33 | B40: 30216 | C40: 培训费 | D40: 0 | E40: 0 | F40: 0 | G40: 0 | H40: 0 | I40: 0 | J40: 0 | K40: 0 | L40: 0
A41: 34 | B41: 30217 | C41: 公务接待费 | D41: 0 | E41: 0 | F41: 0 | G41: 0 | H41: 0 | I41: 0 | J41: 0 | K41: 0 | L41: 0
A42: 35 | B42: 30218 | C42: 专用材料费 | D42: 0 | E42: 0 | F42: 0 | G42: 0 | H42: 0 | I42: 0 | J42: 0 | K42: 0 | L42: 0
A43: 36 | B43: 30224 | C43: 被装购置费 | D43: 0 | E43: 0 | F43: 0 | G43: 0 | H43: 0 | I43: 0 | J43: 0 | K43: 0 | L43: 0
A44: 37 | B44: 30225 | C44: 专用燃料费 | D44: 0 | E44: 0 | F44: 0 | G44: 0 | H44: 0 | I44: 0 | J44: 0 | K44: 0 | L44: 0
A45: 38 | B45: 30226 | C45: 劳务费 | D45: 0 | E45: 0 | F45: 0 | G45: 0 | H45: 0 | I45: 0 | J45: 0 | K45: 0 | L45: 0
A46: 39 | B46: 30227 | C46: 委托业务费 | D46: 0 | E46: 0 | F46: 0 | G46: 0 | H46: 0 | I46: 0 | J46: 0 | K46: 0 | L46: 0
A47: 40 | B47: 30228 | C47: 工会经费 | D47: 0 | E47: 0 | F47: 0 | G47: 0 | H47: 0 | I47: 0 | J47: 0 | K47: 0 | L47: 0
A48: 41 | B48: 30229 | C48: 福利费 | D48: 0 | E48: 0 | F48: 0 | G48: 0 | H48: 0 | I48: 0 | J48: 0 | K48: 0 | L48: 0
A49: 42 | B49: 30231 | C49: 公务用车运行维护费 | D49: 12.5 | E49: 0 | F49: 12.5 | G49: 12.5 | H49: 12.5 | I49: 0 | J49: 0 | K49: 0 | L49: 0
A50: 43 | B50: 30239 | C50: 其他交通费用 | D50: 98.14 | E50: 0 | F50: 98.14 | G50: 98.14 | H50: 98.14 | I50: 0 | J50: 0 | K50: 0 | L50: 0
A51: 44 | B51: 30240 | C51: 税金及附加费用 | D51: 0 | E51: 0 | F51: 0 | G51: 0 | H51: 0 | I51: 0 | J51: 0 | K51: 0 | L51: 0
A52: 45 | B52: 30299 | C52: 其他商品和服务支出 | D52: 0 | E52: 0 | F52: 0 | G52: 0 | H52: 0 | I52: 0 | J52: 0 | K52: 0 | L52: 0
A53: 46 | B53: 303 | C53: 对个人和家庭的补助 | D53: 16.72 | E53: 0 | F53: 16.72 | G53: 16.72 | H53: 16.72 | I53: 0 | J53: 0 | K53: 0 | L53: 0
A54: 47 | B54: 30301 | C54: 离休费 | D54: 0 | E54: 0 | F54: 0 | G54: 0 | H54: 0 | I54: 0 | J54: 0 | K54: 0 | L54: 0
A55: 48 | B55: 30302 | C55: 退休费 | D55: 2.38 | E55: 0 | F55: 2.38 | G55: 2.38 | H55: 2.38 | I55: 0 | J55: 0 | K55: 0 | L55: 0
A56: 49 | B56: 30303 | C56: 退职（役）费 | D56: 0 | E56: 0 | F56: 0 | G56: 0 | H56: 0 | I56: 0 | J56: 0 | K56: 0 | L56: 0
A57: 50 | B57: 30304 | C57: 抚恤金 | D57: 0 | E57: 0 | F57: 0 | G57: 0 | H57: 0 | I57: 0 | J57: 0 | K57: 0 | L57: 0
A58: 51 | B58: 30305 | C58: 生活补助 | D58: 0 | E58: 0 | F58: 0 | G58: 0 | H58: 0 | I58: 0 | J58: 0 | K58: 0 | L58: 0
A59: 52 | B59: 30306 | C59: 救济费 | D59: 0 | E59: 0 | F59: 0 | G59: 0 | H59: 0 | I59: 0 | J59: 0 | K59: 0 | L59: 0
A60: 53 | B60: 30307 | C60: 医疗费补助 | D60: 0 | E60: 0 | F60: 0 | G60: 0 | H60: 0 | I60: 0 | J60: 0 | K60: 0 | L60: 0
A61: 54 | B61: 30308 | C61: 助学金 | D61: 0 | E61: 0 | F61: 0 | G61: 0 | H61: 0 | I61: 0 | J61: 0 | K61: 0 | L61: 0
A62: 55 | B62: 30309 | C62: 奖励金 | D62: 0 | E62: 0 | F62: 0 | G62: 0 | H62: 0 | I62: 0 | J62: 0 | K62: 0 | L62: 0
A63: 56 | B63: 30310 | C63: 个人农业生产补贴 | D63: 0 | E63: 0 | F63: 0 | G63: 0 | H63: 0 | I63: 0 | J63: 0 | K63: 0 | L63: 0
A64: 57 | B64: 30311 | C64: 代缴社会保险费 | D64: 0 | E64: 0 | F64: 0 | G64: 0 | H64: 0 | I64: 0 | J64: 0 | K64: 0 | L64: 0
A65: 58 | B65: 30399 | C65: 其他对个人和家庭的补助 | D65: 14.34 | E65: 0 | F65: 14.34 | G65: 14.34 | H65: 14.34 | I65: 0 | J65: 0 | K65: 0 | L65: 0
A66: 59 | B66: 307 | C66: 债务利息及费用支出 | D66: 0 | E66: 0 | F66: 0 | G66: 0 | H66: 0 | I66: 0 | J66: 0 | K66: 0 | L66: 0
A67: 60 | B67: 30701 | C67: 国内债务付息 | D67: 0 | E67: 0 | F67: 0 | G67: 0 | H67: 0 | I67: 0 | J67: 0 | K67: 0 | L67: 0
A68: 61 | B68: 30702 | C68: 国外债务付息 | D68: 0 | E68: 0 | F68: 0 | G68: 0 | H68: 0 | I68: 0 | J68: 0 | K68: 0 | L68: 0
A69: 62 | B69: 30703 | C69: 国内债务发行费用 | D69: 0 | E69: 0 | F69: 0 | G69: 0 | H69: 0 | I69: 0 | J69: 0 | K69: 0 | L69: 0
A70: 63 | B70: 30704 | C70: 国外债务发行费用 | D70: 0 | E70: 0 | F70: 0 | G70: 0 | H70: 0 | I70: 0 | J70: 0 | K70: 0 | L70: 0
A71: 64 | B71: 309 | C71: 资本性支出（基本建设） | D71: 0 | E71: 0 | F71: 0 | G71: 0 | H71: 0 | I71: 0 | J71: 0 | K71: 0 | L71: 0
A72: 65 | B72: 30901 | C72: 房屋建筑物购建 | D72: 0 | E72: 0 | F72: 0 | G72: 0 | H72: 0 | I72: 0 | J72: 0 | K72: 0 | L72: 0
A73: 66 | B73: 30902 | C73: 办公设备购置 | D73: 0 | E73: 0 | F73: 0 | G73: 0 | H73: 0 | I73: 0 | J73: 0 | K73: 0 | L73: 0
A74: 67 | B74: 30903 | C74: 专用设备购置 | D74: 0 | E74: 0 | F74: 0 | G74: 0 | H74: 0 | I74: 0 | J74: 0 | K74: 0 | L74: 0
A75: 68 | B75: 30905 | C75: 基础设施建设 | D75: 0 | E75: 0 | F75: 0 | G75: 0 | H75: 0 | I75: 0 | J75: 0 | K75: 0 | L75: 0
A76: 69 | B76: 30906 | C76: 大型修缮 | D76: 0 | E76: 0 | F76: 0 | G76: 0 | H76: 0 | I76: 0 | J76: 0 | K76: 0 | L76: 0
A77: 70 | B77: 30907 | C77: 信息网络及软件购置更新 | D77: 0 | E77: 0 | F77: 0 | G77: 0 | H77: 0 | I77: 0 | J77: 0 | K77: 0 | L77: 0
A78: 71 | B78: 30908 | C78: 物资储备 | D78: 0 | E78: 0 | F78: 0 | G78: 0 | H78: 0 | I78: 0 | J78: 0 | K78: 0 | L78: 0
A79: 72 | B79: 30913 | C79: 公务用车购置 | D79: 0 | E79: 0 | F79: 0 | G79: 0 | H79: 0 | I79: 0 | J79: 0 | K79: 0 | L79: 0
A80: 73 | B80: 30919 | C80: 其他交通工具购置 | D80: 0 | E80: 0 | F80: 0 | G80: 0 | H80: 0 | I80: 0 | J80: 0 | K80: 0 | L80: 0
A81: 74 | B81: 30921 | C81: 文物和陈列品购置 | D81: 0 | E81: 0 | F81: 0 | G81: 0 | H81: 0 | I81: 0 | J81: 0 | K81: 0 | L81: 0
A82: 75 | B82: 30922 | C82: 无形资产购置 | D82: 0 | E82: 0 | F82: 0 | G82: 0 | H82: 0 | I82: 0 | J82: 0 | K82: 0 | L82: 0
A83: 76 | B83: 30999 | C83: 其他基本建设支出 | D83: 0 | E83: 0 | F83: 0 | G83: 0 | H83: 0 | I83: 0 | J83: 0 | K83: 0 | L83: 0
A84: 77 | B84: 310 | C84: 资本性支出 | D84: 0 | E84: 0 | F84: 0 | G84: 0 | H84: 0 | I84: 0 | J84: 0 | K84: 0 | L84: 0
A85: 78 | B85: 31001 | C85: 房屋建筑物购建 | D85: 0 | E85: 0 | F85: 0 | G85: 0 | H85: 0 | I85: 0 | J85: 0 | K85: 0 | L85: 0
A86: 79 | B86: 31002 | C86: 办公设备购置 | D86: 0 | E86: 0 | F86: 0 | G86: 0 | H86: 0 | I86: 0 | J86: 0 | K86: 0 | L86: 0
A87: 80 | B87: 31003 | C87: 专用设备购置 | D87: 0 | E87: 0 | F87: 0 | G87: 0 | H87: 0 | I87: 0 | J87: 0 | K87: 0 | L87: 0
A88: 81 | B88: 31005 | C88: 基础设施建设 | D88: 0 | E88: 0 | F88: 0 | G88: 0 | H88: 0 | I88: 0 | J88: 0 | K88: 0 | L88: 0
A89: 82 | B89: 31006 | C89: 大型修缮 | D89: 0 | E89: 0 | F89: 0 | G89: 0 | H89: 0 | I89: 0 | J89: 0 | K89: 0 | L89: 0
A90: 83 | B90: 31007 | C90: 信息网络及软件购置更新 | D90: 0 | E90: 0 | F90: 0 | G90: 0 | H90: 0 | I90: 0 | J90: 0 | K90: 0 | L90: 0
A91: 84 | B91: 31008 | C91: 物资储备 | D91: 0 | E91: 0 | F91: 0 | G91: 0 | H91: 0 | I91: 0 | J91: 0 | K91: 0 | L91: 0
A92: 85 | B92: 31009 | C92: 土地补偿 | D92: 0 | E92: 0 | F92: 0 | G92: 0 | H92: 0 | I92: 0 | J92: 0 | K92: 0 | L92: 0
A93: 86 | B93: 31010 | C93: 安置补助 | D93: 0 | E93: 0 | F93: 0 | G93: 0 | H93: 0 | I93: 0 | J93: 0 | K93: 0 | L93: 0
A94: 87 | B94: 31011 | C94: 地上附着物和青苗补偿 | D94: 0 | E94: 0 | F94: 0 | G94: 0 | H94: 0 | I94: 0 | J94: 0 | K94: 0 | L94: 0
A95: 88 | B95: 31012 | C95: 拆迁补偿 | D95: 0 | E95: 0 | F95: 0 | G95: 0 | H95: 0 | I95: 0 | J95: 0 | K95: 0 | L95: 0
A96: 89 | B96: 31013 | C96: 公务用车购置 | D96: 0 | E96: 0 | F96: 0 | G96: 0 | H96: 0 | I96: 0 | J96: 0 | K96: 0 | L96: 0
A97: 90 | B97: 31019 | C97: 其他交通工具购置 | D97: 0 | E97: 0 | F97: 0 | G97: 0 | H97: 0 | I97: 0 | J97: 0 | K97: 0 | L97: 0
A98: 91 | B98: 31021 | C98: 文物和陈列品购置 | D98: 0 | E98: 0 | F98: 0 | G98: 0 | H98: 0 | I98: 0 | J98: 0 | K98: 0 | L98: 0
A99: 92 | B99: 31022 | C99: 无形资产购置 | D99: 0 | E99: 0 | F99: 0 | G99: 0 | H99: 0 | I99: 0 | J99: 0 | K99: 0 | L99: 0
A100: 93 | B100: 31099 | C100: 其他资本性支出 | D100: 0 | E100: 0 | F100: 0 | G100: 0 | H100: 0 | I100: 0 | J100: 0 | K100: 0 | L100: 0
A101: 94 | B101: 311 | C101: 对企业补助（基本建设） | D101: 0 | E101: 0 | F101: 0 | G101: 0 | H101: 0 | I101: 0 | J101: 0 | K101: 0 | L101: 0
A102: 95 | B102: 31101 | C102: 资本金注入 | D102: 0 | E102: 0 | F102: 0 | G102: 0 | H102: 0 | I102: 0 | J102: 0 | K102: 0 | L102: 0
A103: 96 | B103: 31199 | C103: 其他对企业补助 | D103: 0 | E103: 0 | F103: 0 | G103: 0 | H103: 0 | I103: 0 | J103: 0 | K103: 0 | L103: 0
A104: 97 | B104: 312 | C104: 对企业补助 | D104: 0 | E104: 0 | F104: 0 | G104: 0 | H104: 0 | I104: 0 | J104: 0 | K104: 0 | L104: 0
A105: 98 | B105: 31201 | C105: 资本金注入 | D105: 0 | E105: 0 | F105: 0 | G105: 0 | H105: 0 | I105: 0 | J105: 0 | K105: 0 | L105: 0
A106: 99 | B106: 31203 | C106: 政府投资基金股权投资 | D106: 0 | E106: 0 | F106: 0 | G106: 0 | H106: 0 | I106: 0 | J106: 0 | K106: 0 | L106: 0
A107: 100 | B107: 31204 | C107: 费用补贴 | D107: 0 | E107: 0 | F107: 0 | G107: 0 | H107: 0 | I107: 0 | J107: 0 | K107: 0 | L107: 0
A108: 101 | B108: 31205 | C108: 利息补贴 | D108: 0 | E108: 0 | F108: 0 | G108: 0 | H108: 0 | I108: 0 | J108: 0 | K108: 0 | L108: 0
A109: 102 | B109: 31299 | C109: 其他对企业补助 | D109: 0 | E109: 0 | F109: 0 | G109: 0 | H109: 0 | I109: 0 | J109: 0 | K109: 0 | L109: 0
A110: 103 | B110: 313 | C110: 对社会保障基金补助 | D110: 0 | E110: 0 | F110: 0 | G110: 0 | H110: 0 | I110: 0 | J110: 0 | K110: 0 | L110: 0
A111: 104 | B111: 31302 | C111: 对社会保险基金补助 | D111: 0 | E111: 0 | F111: 0 | G111: 0 | H111: 0 | I111: 0 | J111: 0 | K111: 0 | L111: 0
A112: 105 | B112: 31303 | C112: 补充全国社会保障基金 | D112: 0 | E112: 0 | F112: 0 | G112: 0 | H112: 0 | I112: 0 | J112: 0 | K112: 0 | L112: 0
A113: 106 | B113: 31304 | C113: 对机关事业单位职业年金补助 | D113: 0 | E113: 0 | F113: 0 | G113: 0 | H113: 0 | I113: 0 | J113: 0 | K113: 0 | L113: 0
A114: 107 | B114: 399 | C114: 其他支出 | D114: 0 | E114: 0 | F114: 0 | G114: 0 | H114: 0 | I114: 0 | J114: 0 | K114: 0 | L114: 0
A115: 108 | B115: 39906 | C115: 赠与 | D115: 0 | E115: 0 | F115: 0 | G115: 0 | H115: 0 | I115: 0 | J115: 0 | K115: 0 | L115: 0
A116: 109 | B116: 39907 | C116: 国家赔偿费用支出 | D116: 0 | E116: 0 | F116: 0 | G116: 0 | H116: 0 | I116: 0 | J116: 0 | K116: 0 | L116: 0
A117: 110 | B117: 39908 | C117: 对民间非营利组织和群众性自治组织补贴 | D117: 0 | E117: 0 | F117: 0 | G117: 0 | H117: 0 | I117: 0 | J117: 0 | K117: 0 | L117: 0
A118: 111 | B118: 39999 | C118: 其他支出 | D118: 0 | E118: 0 | F118: 0 | G118: 0 | H118: 0 | I118: 0 | J118: 0 | K118: 0 | L118: 0

Sheet 7-一般公共预算基本支出（政府经济分类）
A1: 表7：
A2: 2023年部门预算一般公共预算财政拨款基本支出表（政府经济分类）
A3: 部门：青岛市即墨区移风店镇人民政府 | I3: 预算年度：2023 | K3: 金额单位：万元
A4: 序号 | B4: 科目编码 | C4: 科目名称 | D4: 支出项目 | G4: 资金性质
D5: 合计 | E5: 基本支出 | G5: 合计 | H5: 一般公共预算 | I5: 政府性基金预算 | J5: 国有资本经营预算 | K5: 财政专户核拨 | L5: 单位资金
E6: 人员经费 | F6: 日常公用经费
A7: 栏次 | B7: 1 | C7: 2 | D7: 3 | E7: 4 | F7: 5 | G7: 6 | H7: 7 | I7: 8 | J7: 9 | K7: 10 | L7: 11
A8: 1 | C8: 合计 | D8: =D9+D14+D60 -> 3814.73 | E8: =E9+E14+E60 -> 3547.49 | F8: =F14 -> 267.24 | G8: =G9+G14+G60 -> 3814.73 | H8: =H9+H14+H60 -> 3814.73 | I8: 0 | J8: 0 | K8: 0 | L8: 0
A9: 2 | B9: 501 | C9: 机关工资福利支出 | D9: 3530.77 | E9: 3530.77 | F9: 0 | G9: 3530.77 | H9: 3530.77 | I9: 0 | J9: 0 | K9: 0 | L9: 0
A10: 3 | B10: 50101 | C10: 工资奖金津补贴 | D10: 2485.06 | E10: 2485.06 | F10: 0 | G10: 2485.06 | H10: 2485.06 | I10: 0 | J10: 0 | K10: 0 | L10: 0
A11: 4 | B11: 50102 | C11: 社会保障缴费 | D11: 787.84 | E11: 787.84 | F11: 0 | G11: 787.84 | H11: 787.84 | I11: 0 | J11: 0 | K11: 0 | L11: 0
A12: 5 | B12: 50103 | C12: 住房公积金 | D12: 257.88 | E12: 257.88 | F12: 0 | G12: 257.88 | H12: 257.88 | I12: 0 | J12: 0 | K12: 0 | L12: 0
A13: 6 | B13: 50199 | C13: 其他工资福利支出 | D13: 0 | E13: 0 | F13: 0 | G13: 0 | H13: 0 | I13: 0 | J13: 0 | K13: 0 | L13: 0
A14: 7 | B14: 502 | C14: 机关商品和服务支出 | D14: 267.24 | E14: 0 | F14: 267.24 | G14: 267.24 | H14: 267.24 | I14: 0 | J14: 0 | K14: 0 | L14: 0
A15: 8 | B15: 50201 | C15: 办公经费 | D15: 254.74 | E15: 0 | F15: 254.74 | G15: 254.74 | H15: 254.74 | I15: 0 | J15: 0 | K15: 0 | L15: 0
A16: 9 | B16: 50202 | C16: 会议费 | D16: 0 | E16: 0 | F16: 0 | G16: 0 | H16: 0 | I16: 0 | J16: 0 | K16: 0 | L16: 0
A17: 10 | B17: 50203 | C17: 培训费 | D17: 0 | E17: 0 | F17: 0 | G17: 0 | H17: 0 | I17: 0 | J17: 0 | K17: 0 | L17: 0
A18: 11 | B18: 50204 | C18: 专用材料购置费 | D18: 0 | E18: 0 | F18: 0 | G18: 0 | H18: 0 | I18: 0 | J18: 0 | K18: 0 | L18: 0
A19: 12 | B19: 50205 | C19: 委托业务费 | D19: 0 | E19: 0 | F19: 0 | G19: 0 | H19: 0 | I19: 0 | J19: 0 | K19: 0 | L19: 0
A20: 13 | B20: 50206 | C20: 公务接待费 | D20: 0 | E20: 0 | F20: 0 | G20: 0 | H20: 0 | I20: 0 | J20: 0 | K20: 0 | L20: 0
A21: 14 | B21: 50207 | C21: 因公出国（境）费用 | D21: 0 | E21: 0 | F21: 0 | G21: 0 | H21: 0 | I21: 0 | J21: 0 | K21: 0 | L21: 0
A22: 15 | B22: 5020701 | C22: 教学科研人员因公出国（境）费用 | D22: 0 | E22: 0 | F22: 0 | G22: 0 | H22: 0 | I22: 0 | J22: 0 | K22: 0 | L22: 0
A23: 16 | B23: 5020702 | C23: 其他因公出国（境）费用 | D23: 0 | E23: 0 | F23: 0 | G23: 0 | H23: 0 | I23: 0 | J23: 0 | K23: 0 | L23: 0
A24: 17 | B24: 50208 | C24: 公务用车运行维护费 | D24: 12.5 | E24: 0 | F24: 12.5 | G24: 12.5 | H24: 12.5 | I24: 0 | J24: 0 | K24: 0 | L24: 0
A25: 18 | B25: 50209 | C25: 维修（护）费 | D25: 0 | E25: 0 | F25: 0 | G25: 0 | H25: 0 | I25: 0 | J25: 0 | K25: 0 | L25: 0
A26: 19 | B26: 50299 | C26: 其他商品和服务支出 | D26: 0 | E26: 0 | F26: 0 | G26: 0 | H26: 0 | I26: 0 | J26: 0 | K26: 0 | L26: 0
A27: 20 | B27: 503 | C27: 机关资本性支出（一） | D27: 0 | E27: 0 | F27: 0 | G27: 0 | H27: 0 | I27: 0 | J27: 0 | K27: 0 | L27: 0
A28: 21 | B28: 50301 | C28: 房屋建筑物购建 | D28: 0 | E28: 0 | F28: 0 | G28: 0 | H28: 0 | I28: 0 | J28: 0 | K28: 0 | L28: 0
A29: 22 | B29: 50302 | C29: 基础设施建设 | D29: 0 | E29: 0 | F29: 0 | G29: 0 | H29: 0 | I29: 0 | J29: 0 | K29: 0 | L29: 0
A30: 23 | B30: 50303 | C30: 公务用车购置 | D30: 0 | E30: 0 | F30: 0 | G30: 0 | H30: 0 | I30: 0 | J30: 0 | K30: 0 | L30: 0
A31: 24 | B31: 50305 | C31: 土地征迁补偿和安置支出 | D31: 0 | E31: 0 | F31: 0 | G31: 0 | H31: 0 | I31: 0 | J31: 0 | K31: 0 | L31: 0
A32: 25 | B32: 50306 | C32: 设备购置 | D32: 0 | E32: 0 | F32: 0 | G32: 0 | H32: 0 | I32: 0 | J32: 0 | K32: 0 | L32: 0
A33: 26 | B33: 50307 | C33: 大型修缮 | D33: 0 | E33: 0 | F33: 0 | G33: 0 | H33: 0 | I33: 0 | J33: 0 | K33: 0 | L33: 0
A34: 27 | B34: 50399 | C34: 其他资本性支出 | D34: 0 | E34: 0 | F34: 0 | G34: 0 | H34: 0 | I34: 0 | J34: 0 | K34: 0 | L34: 0
A35: 28 | B35: 504 | C35: 机关资本性支出（二） | D35: 0 | E35: 0 | F35: 0 | G35: 0 | H35: 0 | I35: 0 | J35: 0 | K35: 0 | L35: 0
A36: 29 | B36: 50401 | C36: 房屋建筑物购建 | D36: 0 | E36: 0 | F36: 0 | G36: 0 | H36: 0 | I36: 0 | J36: 0 | K36: 0 | L36: 0
A37: 30 | B37: 50402 | C37: 基础设施建设 | D37: 0 | E37: 0 | F37: 0 | G37: 0 | H37: 0 | I37: 0 | J37: 0 | K37: 0 | L37: 0
A38: 31 | B38: 50403 | C38: 公务用车购置 | D38: 0 | E38: 0 | F38: 0 | G38: 0 | H38: 0 | I38: 0 | J38: 0 | K38: 0 | L38: 0
A39: 32 | B39: 50404 | C39: 设备购置 | D39: 0 | E39: 0 | F39: 0 | G39: 0 | H39: 0 | I39: 0 | J39: 0 | K39: 0 | L39: 0
A40: 33 | B40: 50405 | C40: 大型修缮 | D40: 0 | E40: 0 | F40: 0 | G40: 0 | H40: 0 | I40: 0 | J40: 0 | K40: 0 | L40: 0
A41: 34 | B41: 50499 | C41: 其他资本性支出 | D41: 0 | E41: 0 | F41: 0 | G41: 0 | H41: 0 | I41: 0 | J41: 0 | K41: 0 | L41: 0
A42: 35 | B42: 505 | C42: 对事业单位经常性补助 | D42: 0 | E42: 0 | F42: 0 | G42: 0 | H42: 0 | I42: 0 | J42: 0 | K42: 0 | L42: 0
A43: 36 | B43: 50501 | C43: 工资福利支出 | D43: 0 | E43: 0 | F43: 0 | G43: 0 | H43: 0 | I43: 0 | J43: 0 | K43: 0 | L43: 0
A44: 37 | B44: 50502 | C44: 商品和服务支出 | D44: 0 | E44: 0 | F44: 0 | G44: 0 | H44: 0 | I44: 0 | J44: 0 | K44: 0 | L44: 0
A45: 38 | B45: 50599 | C45: 其他对事业单位补助 | D45: 0 | E45: 0 | F45: 0 | G45: 0 | H45: 0 | I45: 0 | J45: 0 | K45: 0 | L45: 0
A46: 39 | B46: 506 | C46: 对事业单位资本性补助 | D46: 0 | E46: 0 | F46: 0 | G46: 0 | H46: 0 | I46: 0 | J46: 0 | K46: 0 | L46: 0
A47: 40 | B47: 50601 | C47: 资本性支出（一） | D47: 0 | E47: 0 | F47: 0 | G47: 0 | H47: 0 | I47: 0 | J47: 0 | K47: 0 | L47: 0
A48: 41 | B48: 5060113 | C48: 公务用车购置 | D48: 0 | E48: 0 | F48: 0 | G48: 0 | H48: 0 | I48: 0 | J48: 0 | K48: 0 | L48: 0
A49: 42 | B49: 50602 | C49: 资本性支出（二） | D49: 0 | E49: 0 | F49: 0 | G49: 0 | H49: 0 | I49: 0 | J49: 0 | K49: 0 | L49: 0
A50: 43 | B50: 5060213 | C50: 公务用车购置 | D50: 0 | E50: 0 | F50: 0 | G50: 0 | H50: 0 | I50: 0 | J50: 0 | K50: 0 | L50: 0
A51: 44 | B51: 507 | C51: 对企业补助 | D51: 0 | E51: 0 | F51: 0 | G51: 0 | H51: 0 | I51: 0 | J51: 0 | K51: 0 | L51: 0
A52: 45 | B52: 50701 | C52: 费用补贴 | D52: 0 | E52: 0 | F52: 0 | G52: 0 | H52: 0 | I52: 0 | J52: 0 | K52: 0 | L52: 0
A53: 46 | B53: 50702 | C53: 利息补贴 | D53: 0 | E53: 0 | F53: 0 | G53: 0 | H53: 0 | I53: 0 | J53: 0 | K53: 0 | L53: 0
A54: 47 | B54: 50799 | C54: 其他对企业补助 | D54: 0 | E54: 0 | F54: 0 | G54: 0 | H54: 0 | I54: 0 | J54: 0 | K54: 0 | L54: 0
A55: 48 | B55: 508 | C55: 对企业资本性支出 | D55: 0 | E55: 0 | F55: 0 | G55: 0 | H55: 0 | I55: 0 | J55: 0 | K55: 0 | L55: 0
A56: 49 | B56: 50803 | C56: 对企业资本性支出（一） | D56: 0 | E56: 0 | F56: 0 | G56: 0 | H56: 0 | I56: 0 | J56: 0 | K56: 0 | L56: 0
A57: 50 | B57: 50804 | C57: 对企业资本性支出（二） | D57: 0 | E57: 0 | F57: 0 | G57: 0 | H57: 0 | I57: 0 | J57: 0 | K57: 0 | L57: 0
A58: 51 | B58: 50805 | C58: 政府投资基金股权投资 | D58: 0 | E58: 0 | F58: 0 | G58: 0 | H58: 0 | I58: 0 | J58: 0 | K58: 0 | L58: 0
A59: 52 | B59: 50899 | C59: 其他对企业补助 | D59: 0 | E59: 0 | F59: 0 | G59: 0 | H59: 0 | I59: 0 | J59: 0 | K59: 0 | L59: 0
A60: 53 | B60: 509 | C60: 对个人和家庭的补助 | D60: 16.72 | E60: 16.72 | F60: 0 | G60: 16.72 | H60: 16.72 | I60: 0 | J60: 0 | K60: 0 | L60: 0
A61: 54 | B61: 50901 | C61: 社会福利和救助 | D61: 0 | E61: 0 | F61: 0 | G61: 0 | H61: 0 | I61: 0 | J61: 0 | K61: 0 | L61: 0
A62: 55 | B62: 50902 | C62: 助学金 | D62: 0 | E62: 0 | F62: 0 | G62: 0 | H62: 0 | I62: 0 | J62: 0 | K62: 0 | L62: 0
A63: 56 | B63: 50903 | C63: 个人农业生产补贴 | D63: 0 | E63: 0 | F63: 0 | G63: 0 | H63: 0 | I63: 0 | J63: 0 | K63: 0 | L63: 0
A64: 57 | B64: 50905 | C64: 离退休费 | D64: 2.38 | E64: 2.38 | F64: 0 | G64: 2.38 | H64: 2.38 | I64: 0 | J64: 0 | K64: 0 | L64: 0
A65: 58 | B65: 50999 | C65: 其他对个人和家庭补助 | D65: 14.34 | E65: 14.34 | F65: 0 | G65: 14.34 | H65: 14.34 | I65: 0 | J65: 0 | K65: 0 | L65: 0
A66: 59 | B66: 510 | C66: 对社会保障基金补助 | D66: 0 | E66: 0 | F66: 0 | G66: 0 | H66: 0 | I66: 0 | J66: 0 | K66: 0 | L66: 0
A67: 60 | B67: 51002 | C67: 对社会保险基金补助 | D67: 0 | E67: 0 | F67: 0 | G67: 0 | H67: 0 | I67: 0 | J67: 0 | K67: 0 | L67: 0
A68: 61 | B68: 51003 | C68: 补充全国社会保障基金 | D68: 0 | E68: 0 | F68: 0 | G68: 0 | H68: 0 | I68: 0 | J68: 0 | K68: 0 | L68: 0
A69: 62 | B69: 51004 | C69: 对机关事业单位职业年金补助 | D69: 0 | E69: 0 | F69: 0 | G69: 0 | H69: 0 | I69: 0 | J69: 0 | K69: 0 | L69: 0
A70: 63 | B70: 511 | C70: 债务利息及费用支出 | D70: 0 | E70: 0 | F70: 0 | G70: 0 | H70: 0 | I70: 0 | J70: 0 | K70: 0 | L70: 0
A71: 64 | B71: 51101 | C71: 国内债务付息 | D71: 0 | E71: 0 | F71: 0 | G71: 0 | H71: 0 | I71: 0 | J71: 0 | K71: 0 | L71: 0
A72: 65 | B72: 51102 | C72: 国外债务付息 | D72: 0 | E72: 0 | F72: 0 | G72: 0 | H72: 0 | I72: 0 | J72: 0 | K72: 0 | L72: 0
A73: 66 | B73: 51103 | C73: 国内债务发行费用 | D73: 0 | E73: 0 | F73: 0 | G73: 0 | H73: 0 | I73: 0 | J73: 0 | K73: 0 | L73: 0
A74: 67 | B74: 51104 | C74: 国外债务发行费用 | D74: 0 | E74: 0 | F74: 0 | G74: 0 | H74: 0 | I74: 0 | J74: 0 | K74: 0 | L74: 0
A75: 68 | B75: 512 | C75: 债务还本支出 | D75: 0 | E75: 0 | F75: 0 | G75: 0 | H75: 0 | I75: 0 | J75: 0 | K75: 0 | L75: 0
A76: 69 | B76: 51201 | C76: 国内债务还本 | D76: 0 | E76: 0 | F76: 0 | G76: 0 | H76: 0 | I76: 0 | J76: 0 | K76: 0 | L76: 0
A77: 70 | B77: 51202 | C77: 国外债务还本 | D77: 0 | E77: 0 | F77: 0 | G77: 0 | H77: 0 | I77: 0 | J77: 0 | K77: 0 | L77: 0
A78: 71 | B78: 513 | C78: 转移性支出 | D78: 0 | E78: 0 | F78: 0 | G78: 0 | H78: 0 | I78: 0 | J78: 0 | K78: 0 | L78: 0
A79: 72 | B79: 51301 | C79: 上下级政府间转移性支出 | D79: 0 | E79: 0 | F79: 0 | G79: 0 | H79: 0 | I79: 0 | J79: 0 | K79: 0 | L79: 0
A80: 73 | B80: 51302 | C80: 援助其他地区支出 | D80: 0 | E80: 0 | F80: 0 | G80: 0 | H80: 0 | I80: 0 | J80: 0 | K80: 0 | L80: 0
A81: 74 | B81: 51303 | C81: 债务转贷 | D81: 0 | E81: 0 | F81: 0 | G81: 0 | H81: 0 | I81: 0 | J81: 0 | K81: 0 | L81: 0
A82: 75 | B82: 51304 | C82: 调出资金 | D82: 0 | E82: 0 | F82: 0 | G82: 0 | H82: 0 | I82: 0 | J82: 0 | K82: 0 | L82: 0
A83: 76 | B83: 51305 | C83: 安排预算稳定调节基金 | D83: 0 | E83: 0 | F83: 0 | G83: 0 | H83: 0 | I83: 0 | J83: 0 | K83: 0 | L83: 0
A84: 77 | B84: 51306 | C84: 补充预算周转金 | D84: 0 | E84: 0 | F84: 0 | G84: 0 | H84: 0 | I84: 0 | J84: 0 | K84: 0 | L84: 0
A85: 78 | B85: 514 | C85: 预备费及预留 | D85: 0 | E85: 0 | F85: 0 | G85: 0 | H85: 0 | I85: 0 | J85: 0 | K85: 0 | L85: 0
A86: 79 | B86: 51401 | C86: 预备费 | D86: 0 | E86: 0 | F86: 0 | G86: 0 | H86: 0 | I86: 0 | J86: 0 | K86: 0 | L86: 0
A87: 80 | B87: 51402 | C87: 预留 | D87: 0 | E87: 0 | F87: 0 | G87: 0 | H87: 0 | I87: 0 | J87: 0 | K87: 0 | L87: 0
A88: 81 | B88: 599 | C88: 其他支出 | D88: 0 | E88: 0 | F88: 0 | G88: 0 | H88: 0 | I88: 0 | J88: 0 | K88: 0 | L88: 0
A89: 82 | B89: 59906 | C89: 赠与 | D89: 0 | E89: 0 | F89: 0 | G89: 0 | H89: 0 | I89: 0 | J89: 0 | K89: 0 | L89: 0
A90: 83 | B90: 59907 | C90: 国家赔偿费用支出 | D90: 0 | E90: 0 | F90: 0 | G90: 0 | H90: 0 | I90: 0 | J90: 0 | K90: 0 | L90: 0
A91: 84 | B91: 59908 | C91: 对民间非营利组织和群众性自治组织补贴 | D91: 0 | E91: 0 | F91: 0 | G91: 0 | H91: 0 | I91: 0 | J91: 0 | K91: 0 | L91: 0
A92: 85 | B92: 59999 | C92: 其他支出 | D92: 0 | E92: 0 | F92: 0 | G92: 0 | H92: 0 | I92: 0 | J92: 0 | K92: 0 | L92: 0

Sheet 8-政府性基金财政拨款支出
A1: 表8：
A2: 2023年部门预算政府性基金预算财政拨款支出表
A3: 部门：青岛市即墨区移风店镇人民政府 | E3: 预算年度：2023 | F3: 金额单位：万元
A4: 序号 | B4: 支出功能分类科目 | D4: 合计 | E4: 基本支出 | F4: 项目支出
A5: 栏次 | B5: 科目编码 | C5: 科目名称
A6: 栏次 | B6: 1 | C6: 2 | D6: 3 | E6: 4 | F6: 5
A7: 1 | C7: 合计 | D7: 0
A8: 2 | B8: 212 | C8: 城乡社区支出
A9: 3 | B9: 21208 | C9: 国有土地使用权出让收入安排的支出
A10: 4 | B10: 2120801 | C10: 征地和拆迁补偿支出
A11: 5 | B11: 2120803 | C11: 城市建设支出
A12: 6 | B12: 2120804 | C12: 农村基础设施建设支出

Sheet 9-国有资本经营预算拨款支出
A1: 表9：
A2: 2023年部门预算国有资本经营预算财政拨款支出表
A3: 部门：青岛市即墨区移风店镇人民政府 | E3: 预算年度：2023 | F3: 金额单位：万元
A4: 序号 | B4: 支出功能分类科目 | D4: 合计 | E4: 基本支出 | F4: 项目支出
B5: 科目编码 | C5: 科目名称
A6: 栏次 | B6: 1 | C6: 2 | D6: 3 | E6: 4 | F6: 5
A7: 1 | D7: 0
A8: 2
A9: 3
A10: 4
A11: 5
A12: 6

Sheet 10-财政拨款“三公”经费支出
A1: 表10：
A2: 2023年部门预算财政拨款“三公”经费支出表
A3: 部门：青岛市即墨区移风店镇人民政府 | E3: 预算年度：2023 | F3: 金额单位：万元
A4: 序号 | B4: 项目 | C4: 资金性质
C5: 合计 | D5: 一般公共预算财政拨款 | E5: 政府性基金财政拨款 | F5: 国有资本经营预算财政拨款
A6: 栏次 | B6: 1 | C6: 2 | D6: 3 | E6: 4 | F6: 5
A7: 1 | B7: 合计 | C7: 12.5 | D7: 12.5
A8: 2 | B8: “三公”经费合计 | C8: 12.5 | D8: 12.5
A9: 3 | B9: 一、因公出国"境"费 | C9: 0 | D9: 0
A10: 4 | B10: 二、公务用车购置及运维费 | C10: 12.5 | D10: 12.5
A11: 5 | B11: 其中:公务用车购置费 | C11: 0 | D11: 0
A12: 6 | B12: 公务用车运行维护费 | C12: 12.5 | D12: 12.5
A13: 7 | B13: 三、公务接待费 | C13: 0 | D13: 0
A14: 注释：1.因公出国（境）费用反映单位公务出国（境）的国际旅费、国外城市间交通费、住宿费、伙食费、培训费、公杂费等支出。 2.公务接待费反映单位按规定开支的各类公务接待（含外宾接待）费用。 3.公务用车购置反映公务用车购置支出（含车辆购置税、牌照费）。 4.公务用车运行维护费反映单位按规定保留的公务用车燃料费、维修费、过路过桥费、保险费、安全奖励费用等支出。 5.本部门“三公”经费增减变化情况、主要原因及其他需要说明的事项：

Sheet 附件3-采购预算表
A1: 附件3：
A2: 2023年政府采购预算表
A3: 部门：青岛市即墨区移风店镇人民政府 | AP3: 预算年度：2023 | AR3: 金额单位： 万元
A4: 序号 | B4: 单位名称 | C4: 所属项目 | G4: 采购物品目录序号、物品名称 | H4: 采购类别 | I4: 采购物品产地 | J4: 产品规格 | K4: 计量单位 | L4: 单价 | M4: 数量 | N4: 当年部门预算安排资金 | AQ4: 预留份额 | AS4: 政府采购政策功能
C5: 项目类别 | D5: 项目编码、项目名称、功能分类编码、经济分类编码 | E5: 细目名称 | F5: 资金来源 | N5: 合计 | O5: 一般公共预算 | AB5: 政府性基金预算 | AG5: 国有资本经营预算 | AJ5: 财政专户管理 | AK5: 单位资金 | AQ5: 中小微企业预留份额 | AR5: 其中：小微企业预留
A6: rownum | B6: agencyname | C6: projexpendtype | D6: project | E6: projitemname | F6: bgtfundsource | G6: purchaseitem | H6: purcat | I6: purplace | J6: std | K6: units | L6: amtdanj | M6: quantity | O6: 小计 | P6: 事业费限额 | Q6: 非限额补助 | R6: 一般财力 | S6: 行政事业性收费 | T6: 专项收入 | U6: 国有资源（资产）有偿使用收入 | V6: 政府住房基金收入 | W6: 上级一般公共预算安排转移支付 | X6: 其他一般公共预算资金 | Y6: 一般债券 | Z6: 外国政府和国际组织贷款 | AA6: 外国政府和国际组织赠款 | AB6: 小计 | AC6: 政府性基金收入 | AD6: 专项债券对应项目专项收入 | AE6: 上级政府性基金预算安排转移支付 | AF6: 专项债券 | AG6: 小计 | AH6: 国有资本经营收入 | AI6: 上级国有资本经营预算安排转移支付 | AJ6: amtzhuanh_shb | AK6: 小计 | AL6: 事业收入资金 | AM6: 上级补助收入资金 | AN6: 附属单位上缴收入资金 | AO6: 事业单位经营收入资金 | AP6: 其他收入资金 | AQ6: amtylfe_zxw_shb | AR6: amtylfe_xw_shb | AS6: policyfunc
A7: 1 | B7: 合计 | N7: =SUM(N8:N49) -> 1456.180276 | R7: =SUM(R8:R49) -> 21.740276 | S7: 0 | T7: 0 | U7: 0 | V7: 0 | W7: 1434.44 | AQ7: =SUM(AQ8:AQ49) -> 1445.74 | AR7: =SUM(AR8:AR49) -> 1148.57
A8: 2 | B8: 青岛市即墨区移风店镇人民政府本级 | C8: 特定目标类 | D8: [37021523P96000710031U] 2022年即墨区农村清洁取暖中央资金补贴项目 [2119999]其他节能环保支出 [30299]其他商品和服务支出 | E8: 22年清洁取暖电代煤项目 | F8: [5111]上级专款结转 | G8: A9999_其他不另分类的物品 | H8: 货物 | K8: 万元 | L8: 65.754 | M8: 1 | N8: =L8*M8 -> 65.754 | W8: 65.754 | AQ8: 65.754 | AR8: 65.754 | AS8: 节能环保
A9: 3 | B9: 青岛市即墨区移风店镇人民政府本级 | C9: 特定目标类 | D9: [37021523P96000710031U] 2022年即墨区农村清洁取暖中央资金补贴项目 [2119999]其他节能环保支出 [30299]其他商品和服务支出 | E9: 22年清洁取暖电代煤项目 | F9: [5111]上级专款结转 | G9: A9999_其他不另分类的物品 | H9: 货物 | K9: 万元 | L9: 41.92 | M9: 1 | N9: =L9*M9 -> 41.92 | W9: 41.92 | AQ9: 41.92 | AR9: 41.92 | AS9: 节能环保
A10: 4 | B10: 青岛市即墨区移风店镇人民政府本级 | C10: 特定目标类 | D10: [37021523P96000710031U] 2022年即墨区农村清洁取暖中央资金补贴项目 [2119999]其他节能环保支出 [30299]其他商品和服务支出 | E10: 22年清洁取暖电代煤项目 | F10: [5111]上级专款结转 | G10: A9999_其他不另分类的物品 | H10: 货物 | K10: 万元 | L10: 51.781 | M10: 1 | N10: 51.781 | W10: 51.781 | AQ10: 51.781 | AR10: 51.781 | AS10: 节能环保
A11: 5 | B11: 青岛市即墨区移风店镇人民政府本级 | C11: 特定目标类 | D11: [37021523P96000710031U] 2022年即墨区农村清洁取暖中央资金补贴项目 [2119999]其他节能环保支出 [30299]其他商品和服务支出 | E11: 22年清洁取暖电代煤项目 | F11: [5111]上级专款结转 | G11: A9999_其他不另分类的物品 | H11: 货物 | K11: 万元 | L11: 35.342 | M11: 1 | N11: 35.342 | W11: 35.342 | AQ11: 35.342 | AR11: 35.342 | AS11: 节能环保
A12: 6 | B12: 青岛市即墨区移风店镇人民政府本级 | C12: 特定目标类 | D12: [37021523P96000710031U] 2022年即墨区农村清洁取暖中央资金补贴项目 [2119999]其他节能环保支出 [30299]其他商品和服务支出 | E12: 22年清洁取暖项目 | F12: [5111]上级专款结转 | G12: A9999_其他不另分类的物品 | H12: 货物 | K12: 万元 | L12: 51.783 | M12: 1 | N12: 51.783 | W12: 51.783 | AQ12: 51.783 | AR12: 51.783 | AS12: 节能环保
A13: 7 | B13: 青岛市即墨区移风店镇人民政府本级 | C13: 公用经费 | D13: [37021523EE82DE00087E2] 公用经费-分项定额 [2010301]行政运行 [30231]公务用车运行维护费 | E13: 车辆保险 | F13: [1111]当年预算-经费拨款 | G13: C18040102_财产保险服务 | H13: 服务 | K13: 万元 | L13: 1.333976 | M13: 1 | N13: 1.333976 | R13: 1.333976 | AS13: 其他
A14: 8 | B14: 青岛市即墨区移风店镇人民政府本级 | C14: 公用经费 | D14: [37021523EE82DE00087E2] 公用经费-分项定额 [2010301]行政运行 [30231]公务用车运行维护费 | E14: 车辆加油 | F14: [1111]当年预算-经费拨款 | G14: C23120302_车辆加油、添加燃料服务 | H14: 服务 | K14: 万元 | L14: 3 | M14: 1 | N14: 3 | R14: 3 | AS14: 其他
A15: 9 | B15: 青岛市即墨区移风店镇人民政府本级 | C15: 特定目标类 | D15: [37021523P01000610183G] 2023年衔接推进乡村振兴项目（第一批） [2130599]其他巩固脱贫衔接乡村振兴支出 [39999]其他支出 | E15: 即墨区2023年衔接推进乡村振兴项目（第一批） | F15: [4112]上级一般转移支付收入 | G15: B99000000_其他建筑工程 | H15: 工程 | K15: 万元 | L15: 39.46 | M15: 1 | N15: 39.46 | W15: 39.46 | AQ15: 39.46 | AR15: 0 | AS15: 其他
A16: 10 | B16: 青岛市即墨区移风店镇人民政府本级 | C16: 特定目标类 | D16: [37021523P010006101844] 2023年衔接推进乡村振兴项目（第一批） [2130599]其他巩固脱贫衔接乡村振兴支出 [39999]其他支出 | E16: 即墨区2023年衔接推进乡村振兴项目（第一批） | F16: [4112]上级一般转移支付收入 | G16: B99000000_其他建筑工程 | H16: 工程 | K16: 万元 | L16: 54.29 | M16: 1 | N16: 54.29 | W16: 54.29 | AQ16: 54.29 | AR16: 54.29 | AS16: 其他
A17: 11 | B17: 青岛市即墨区移风店镇人民政府本级 | C17: 特定目标类 | D17: [37021523P01000610183G] 2023年衔接推进乡村振兴项目（第一批） [2130599]其他巩固脱贫衔接乡村振兴支出 [39999]其他支出 | E17: 即墨区2023年衔接推进乡村振兴项目（第一批） | F17: [4112]上级一般转移支付收入 | G17: B99000000_其他建筑工程 | H17: 工程 | K17: 万元 | L17: 71.96 | M17: 1 | N17: 71.96 | W17: 71.96 | AQ17: 71.96 | AR17: 71.96 | AS17: 其他
A18: 12 | B18: 青岛市即墨区移风店镇人民政府本级 | C18: 特定目标类 | D18: [37021523P01000610183G] 2023年衔接推进乡村振兴项目（第一批） [2130599]其他巩固脱贫衔接乡村振兴支出 [39999]其他支出 | E18: 即墨区2023年衔接推进乡村振兴项目（第一批） | F18: [4112]上级一般转移支付收入 | G18: B99000000_其他建筑工程 | H18: 工程 | K18: 万元 | L18: 38.95 | M18: 1 | N18: 38.95 | W18: 38.95 | AQ18: 38.95 | AR18: 38.95 | AS18: 其他
A19: 13 | B19: 青岛市即墨区移风店镇人民政府本级 | C19: 特定目标类 | D19: [37021523P010006101844] 2023年衔接推进乡村振兴项目（第一批） [2130599]其他巩固脱贫衔接乡村振兴支出 [39999]其他支出 | E19: 即墨区2023年衔接推进乡村振兴项目（第一批） | F19: [4112]上级一般转移支付收入 | G19: B99000000_其他建筑工程 | H19: 工程 | K19: 万元 | L19: 52.39 | M19: 1 | N19: 52.39 | W19: 52.39 | AQ19: 52.39 | AR19: 52.39 | AS19: 其他
A20: 14 | B20: 青岛市即墨区移风店镇人民政府本级 | C20: 特定目标类 | D20: [37021523P010006101844] 2023年衔接推进乡村振兴项目（第一批） [2130599]其他巩固脱贫衔接乡村振兴支出 [39999]其他支出 | E20: 即墨区2023年衔接推进乡村振兴项目（第一批） | F20: [4112]上级一般转移支付收入 | G20: B99000000_其他建筑工程 | H20: 工程 | K20: 万元 | L20: 43.6 | M20: 1 | N20: 43.6 | W20: 43.6 | AQ20: 43.6 | AR20: 43.6 | AS20: 其他
A21: 15 | B21: 青岛市即墨区移风店镇人民政府本级 | C21: 其他运转类 | D21: [37021523P02000310820L] 其他运转类-调度款 [2010301]行政运行 [30202]印刷费 | E21: 选举印刷品 | F21: [1111]当年预算-经费拨款 | G21: C23090199_其他印刷服务 | H21: 服务 | K21: 万元 | L21: 3.64 | M21: 1 | N21: 3.64 | R21: 3.64 | AQ21: 3.64 | AR21: 3.64 | AS21: 其他
A22: 16 | B22: 青岛市即墨区移风店镇人民政府本级 | C22: 其他运转类 | D22: [37021523P02000310820L] 其他运转类-调度款 [2010301]行政运行 [30201]办公费 | E22: 政府空调采购 | F22: [1111]当年预算-经费拨款 | G22: A02061804_空调机 | H22: 货物 | K22: 万元 | L22: 0.7 | M22: 2 | N22: 1.4 | R22: 1.4 | AQ22: 1.4 | AR22: 1.4 | AS22: 节能环保
A23: 17 | B23: 青岛市即墨区移风店镇人民政府本级 | C23: 其他运转类 | D23: [37021523P02000310820L] 其他运转类-调度款 [2010301]行政运行 [30202]印刷费 | E23: 印刷服务 | F23: [1111]当年预算-经费拨款 | G23: C23090199_其他印刷服务 | H23: 服务 | K23: 万元 | L23: 1.96 | M23: 1 | N23: 1.96 | R23: 1.96 | AQ23: 1.96 | AR23: 1.96 | AS23: 其他
A24: 18 | B24: 青岛市即墨区移风店镇人民政府本级 | C24: 特定目标类 | D24: [37021523P010006101844] 2023年衔接推进乡村振兴项目（第一批） [2130599]其他巩固脱贫衔接乡村振兴支出 [39999]其他支出 | E24: 2023年度移风店镇丰享庄网格小型公益性基础设施建设项目 | F24: [4112]上级一般转移支付收入 | G24: B99000000_其他建筑工程 | H24: 工程 | K24: 万元 | L24: 72.66 | M24: 1 | N24: 72.66 | W24: 72.66 | AQ24: 72.66 | AR24: 72.66 | AS24: 其他
A25: 19 | B25: 青岛市即墨区移风店镇人民政府本级 | C25: 特定目标类 | D25: [37021523P01000610183G] 2023年衔接推进乡村振兴项目（第一批） [2130599]其他巩固脱贫衔接乡村振兴支出 [39999]其他支出 | E25: 2023年度移风店镇衔接乡村振兴集中推进区甄家庄村、毛公泊村、黑家屯村、牟家村、店东村村庄人居环境整治建设项目 | F25: [4112]上级一般转移支付收入 | G25: B99000000_其他建筑工程 | H25: 工程 | K25: 万元 | L25: 119.13 | M25: 1 | N25: 119.13 | W25: 119.13 | AQ25: 119.13 | AR25: 119.13 | AS25: 其他
A26: 20 | B26: 青岛市即墨区移风店镇人民政府本级 | C26: 特定目标类 | D26: [37021523P01000610183G] 2023年衔接推进乡村振兴项目（第一批） [2130599]其他巩固脱贫衔接乡村振兴支出 [39999]其他支出 | E26: 2023年度移风店镇衔接乡村振兴集中推进区甄家庄村、毛公泊村、黑家屯村、牟家村、店东村村庄人居环境整治建设项目 | F26: [4112]上级一般转移支付收入 | G26: B99000000_其他建筑工程 | H26: 工程 | K26: 万元 | L26: 0.8 | M26: 1 | N26: 0.8 | W26: 0.8 | AQ26: 0.8 | AR26: 0.8 | AS26: 其他
A27: 21 | B27: 青岛市即墨区移风店镇人民政府本级 | C27: 特定目标类 | D27: [37021523P01000610183G] 2023年衔接推进乡村振兴项目（第一批） [2130599]其他巩固脱贫衔接乡村振兴支出 [39999]其他支出 | E27: 2023年度移风店镇衔接乡村振兴集中推进区沟西村村庄人居环境整治建设项目 | F27: [4112]上级一般转移支付收入 | G27: B99000000_其他建筑工程 | H27: 工程 | K27: 万元 | L27: 65.76 | M27: 1 | N27: 65.76 | W27: 65.76 | AQ27: 65.76 | AR27: 0 | AS27: 其他
A28: 22 | B28: 青岛市即墨区移风店镇人民政府本级 | C28: 特定目标类 | D28: [37021523P010006101844] 2023年衔接推进乡村振兴项目（第一批） [2130599]其他巩固脱贫衔接乡村振兴支出 [39999]其他支出 | E28: 2023年度移风店镇北住网格小型公益性基础设施建设项目 | F28: [4112]上级一般转移支付收入 | G28: B99000000_其他建筑工程 | H28: 工程 | K28: 万元 | L28: 87.33 | M28: 1 | N28: 87.33 | W28: 87.33 | AQ28: 87.33 | AR28: 87.33 | AS28: 其他
A29: 23 | B29: 青岛市即墨区移风店镇人民政府本级 | C29: 特定目标类 | D29: [37021523P01000610183G] 2023年衔接推进乡村振兴项目（第一批） [2130599]其他巩固脱贫衔接乡村振兴支出 [39999]其他支出 | E29: 2023年度移风店镇衔接乡村振兴集中推进区曹家屯村、辛家帖村村庄人居环境整治建设项目 | F29: [4112]上级一般转移支付收入 | G29: B99000000_其他建筑工程 | H29: 工程 | K29: 万元 | L29: 64.91 | M29: 1 | N29: 64.91 | W29: 64.91 | AQ29: 64.91 | AR29: 64.91 | AS29: 其他
A30: 24 | B30: 青岛市即墨区移风店镇人民政府本级 | C30: 特定目标类 | D30: [37021523P010006101844] 2023年衔接推进乡村振兴项目（第一批） [2130599]其他巩固脱贫衔接乡村振兴支出 [39999]其他支出 | E30: 2023年度移风店镇七级村小型公益性基础设施建设项目 | F30: [4112]上级一般转移支付收入 | G30: B99000000_其他建筑工程 | H30: 工程 | K30: 万元 | L30: 90.49 | M30: 1 | N30: 90.49 | W30: 90.49 | AQ30: 90.49 | AR30: 90.49 | AS30: 其他
A31: 25 | B31: 青岛市即墨区移风店镇人民政府本级 | C31: 特定目标类 | D31: [37021523P04000110007W] 2022年度一事一议和宜居宜业美丽乡村 [2130701]对村级公益事业建设的补助 [39999]其他支出 | E31: 2022年宜居宜业-西朱 | F31: [5111]上级专款结转 | G31: B99000000_其他建筑工程 | H31: 工程 | K31: 万元 | L31: 50 | M31: 1 | N31: 50 | W31: 50 | AQ31: 50 | AR31: 50 | AS31: 其他
A32: 26 | B32: 青岛市即墨区移风店镇人民政府本级 | C32: 特定目标类 | D32: [37021523P01000810095M] 美丽乡村示范村奖补资金-移风店镇 [2139999]其他农林水支出 [31005]基础设施建设 | E32: 23年马军寨美丽乡村项目 | F32: [4112]上级一般转移支付收入 | G32: B99000000_其他建筑工程 | H32: 工程 | K32: 万元 | L32: 20 | M32: 1 | N32: 20 | W32: 20 | AQ32: 20 | AR32: 0 | AS32: 其他
A33: 27 | B33: 青岛市即墨区移风店镇人民政府本级 | C33: 特定目标类 | D33: [37021523P010008100942] 美丽乡村示范村奖补资金-移风店镇 [2139999]其他农林水支出 [31005]基础设施建设 | E33: 太平庄矫家庄美丽乡村 | F33: [4112]上级一般转移支付收入 | G33: B99000000_其他建筑工程 | H33: 工程 | K33: 万元 | L33: 40 | M33: 1 | N33: 40 | W33: 40 | AQ33: 40 | AR33: 0 | AS33: 其他
A34: 28 | B34: 青岛市即墨区移风店镇人民政府本级 | C34: 特定目标类 | D34: [37021523P010008100942] 美丽乡村示范村奖补资金-移风店镇 [2139999]其他农林水支出 [31005]基础设施建设 | E34: 西太美丽乡村 | F34: [4112]上级一般转移支付收入 | G34: B99000000_其他建筑工程 | H34: 工程 | K34: 万元 | L34: 40 | M34: 1 | N34: 40 | W34: 40 | AQ34: 40 | AR34: 0 | AS34: 其他
A35: 29 | B35: 青岛市即墨区移风店镇人民政府本级 | C35: 特定目标类 | D35: [37021523P01000810095M] 美丽乡村示范村奖补资金-移风店镇 [2139999]其他农林水支出 [31005]基础设施建设 | E35: 东太美丽乡村 | F35: [4112]上级一般转移支付收入 | G35: B99000000_其他建筑工程 | H35: 工程 | K35: 万元 | L35: 20 | M35: 1 | N35: 20 | W35: 20 | AQ35: 20 | AR35: 0 | AS35: 其他
A36: 30 | B36: 青岛市即墨区移风店镇人民政府本级 | C36: 公用经费 | D36: [37021523EE82DE00087E2] 公用经费-分项定额 [2010301]行政运行 [30231]公务用车运行维护费 | E36: 加油服务 | F36: [1111]当年预算-经费拨款 | G36: C23120302_车辆加油、添加燃料服务 | H36: 服务 | K36: 万元 | L36: 5 | M36: 1 | N36: 5 | R36: 5 | AS36: 其他
A37: 31 | B37: 青岛市即墨区移风店镇人民政府本级 | C37: 公用经费 | D37: [37021523EE82DE00087E2] 公用经费-分项定额 [2010301]行政运行 [30231]公务用车运行维护费 | E37: 汽车维修服务费 | F37: [1111]当年预算-经费拨款 | G37: C23120301_车辆维修和保养服务 | H37: 服务 | K37: 万元 | L37: 1.3 | M37: 1 | N37: 1.3 | R37: 1.3 | AQ37: 1.3 | AR37: 1.3 | AS37: 其他
A38: 32 | B38: 青岛市即墨区移风店镇人民政府本级 | C38: 公用经费 | D38: [37021523EE82DE00087E2] 公用经费-分项定额 [2010301]行政运行 [30231]公务用车运行维护费 | E38: 汽车维修费 | F38: [1111]当年预算-经费拨款 | G38: C23120301_车辆维修和保养服务 | H38: 服务 | K38: 万元 | L38: 0.7 | M38: 1 | N38: 0.7 | R38: 0.7 | AQ38: 0 | AR38: 0 | AS38: 其他
A39: 33 | B39: 青岛市即墨区移风店镇人民政府本级 | C39: 其他运转类 | D39: [37021523P02000310820L] 其他运转类-调度款 [2010301]行政运行 [30299]其他商品和服务支出 | E39: 办公家具 | F39: [1111]当年预算-经费拨款 | G39: A05019900_其他家具 | H39: 货物 | K39: 万元 | L39: 2 | M39: 1 | N39: 2 | R39: 2 | AQ39: 2 | AR39: 2 | AS39: 其他
A40: 34 | B40: 青岛市即墨区移风店镇人民政府本级 | C40: 其他运转类 | D40: [37021523P02000310820L] 其他运转类-调度款 [2010301]行政运行 [30299]其他商品和服务支出 | E40: 办公印刷品等 | F40: [1111]当年预算-经费拨款 | G40: C23090199_其他印刷服务 | H40: 服务 | K40: 万元 | L40: 1 | M40: 1 | N40: 1 | R40: 1 | AQ40: 1 | AR40: 1 | AS40: 其他
A41: 35 | B41: 青岛市即墨区移风店镇人民政府本级 | C41: 特定目标类 | D41: [37021523P04000110007W] 2022年度一事一议和宜居宜业美丽乡村 [2130701]对村级公益事业建设的补助 [39999]其他支出 | E41: 2022年北岔河村宜居宜业 | F41: [5111]上级专款结转 | G41: B99000000_其他建筑工程 | H41: 工程 | K41: 万元 | L41: 25 | M41: 1 | N41: 25 | W41: 25 | AQ41: 25 | AR41: 0 | AS41: 其他
A42: 36 | B42: 青岛市即墨区移风店镇人民政府本级 | C42: 特定目标类 | D42: [37021523P04000110007W] 2022年度一事一议和宜居宜业美丽乡村 [2130701]对村级公益事业建设的补助 [39999]其他支出 | E42: 2022年北岔河村宜居宜业 | F42: [5111]上级专款结转 | G42: B99000000_其他建筑工程 | H42: 工程 | K42: 万元 | L42: 25 | M42: 1 | N42: 25 | W42: 25 | AQ42: 25 | AR42: 0 | AS42: 其他
A43: 37 | B43: 青岛市即墨区移风店镇人民政府本级 | C43: 特定目标类 | D43: [37021523P010006101844] 2023年衔接推进乡村振兴项目（第一批） [2130599]其他巩固脱贫衔接乡村振兴支出 [39999]其他支出 | E43: 2023年度移风店镇七级村小型公益性基础设施建设项目 | F43: [4112]上级一般转移支付收入 | G43: B99000000_其他建筑工程 | H43: 工程 | K43: 万元 | L43: 33.35 | M43: 1 | N43: 33.35 | W43: 33.35 | AQ43: 33.35 | AR43: 33.35 | AS43: 其他
A44: 38 | B44: 青岛市即墨区移风店镇人民政府本级 | C44: 特定目标类 | D44: [37021523P010006101844] 2023年衔接推进乡村振兴项目（第一批） [2130599]其他巩固脱贫衔接乡村振兴支出 [39999]其他支出 | E44: 2023年度移风店镇北住网格小型公益性基础设施建设项目 | F44: [4112]上级一般转移支付收入 | G44: B99000000_其他建筑工程 | H44: 工程 | K44: 万元 | L44: 23.99 | M44: 1 | N44: 23.99 | W44: 23.99 | AQ44: 23.99 | AR44: 23.99 | AS44: 其他
A45: 39 | B45: 青岛市即墨区移风店镇人民政府本级 | C45: 特定目标类 | D45: [37021523P01000610183G] 2023年衔接推进乡村振兴项目（第一批） [2130599]其他巩固脱贫衔接乡村振兴支出 [39999]其他支出 | E45: 2023年度移风店镇衔接乡村振兴集中推进区曹家屯村、辛家帖村村庄人居环境整治建设项目 | F45: [4112]上级一般转移支付收入 | G45: B99000000_其他建筑工程 | H45: 工程 | K45: 万元 | L45: 21.94 | M45: 1 | N45: 21.94 | W45: 21.94 | AQ45: 21.94 | AR45: 21.94 | AS45: 其他
A46: 40 | B46: 青岛市即墨区移风店镇人民政府本级 | C46: 特定目标类 | D46: [37021523P01000610183G] 2023年衔接推进乡村振兴项目（第一批） [2130599]其他巩固脱贫衔接乡村振兴支出 [39999]其他支出 | E46: 2023年度移风店镇衔接乡村振兴集中推进区甄家庄村、毛公泊村、黑家屯村、牟家村、店东村村庄人居环境整治建设项目 | F46: [4112]上级一般转移支付收入 | G46: B99000000_其他建筑工程 | H46: 工程 | K46: 万元 | L46: 40.04 | M46: 1 | N46: 40.04 | W46: 40.04 | AQ46: 40.04 | AR46: 40.04 | AS46: 其他
A47: 41 | B47: 青岛市即墨区移风店镇人民政府本级 | C47: 特定目标类 | D47: [37021523P01000610183G] 2023年衔接推进乡村振兴项目（第一批） [2130599]其他巩固脱贫衔接乡村振兴支出 [39999]其他支出 | E47: 2023年度移风店镇衔接乡村振兴集中推进区沟西村村庄人居环境整治建设项目 | F47: [4112]上级一般转移支付收入 | G47: B99000000_其他建筑工程 | H47: 工程 | K47: 万元 | L47: 21.95 | M47: 1 | N47: 21.95 | W47: 21.95 | AQ47: 21.95 | AR47: 0 | AS47: 其他
A48: 42 | B48: 青岛市即墨区移风店镇人民政府本级 | C48: 特定目标类 | D48: [37021523P010006101844] 2023年衔接推进乡村振兴项目（第一批） [2130599]其他巩固脱贫衔接乡村振兴支出 [39999]其他支出 | E48: 2023年度移风店镇丰享庄网格小型公益性基础设施建设项目 | F48: [4112]上级一般转移支付收入 | G48: B99000000_其他建筑工程 | H48: 工程 | K48: 万元 | L48: 24.86 | M48: 1 | N48: 24.86 | W48: 24.86 | AQ48: 24.86 | AR48: 24.86 | AS48: 其他
A49: 43 | B49: 青岛市即墨区移风店镇人民政府本级 | C49: 公用经费 | D49: [37021523EE82DE00087E2] 公用经费-分项定额 [2010301]行政运行 [30231]公务用车运行维护费 | E49: 车辆保险 | F49: [1111]当年预算-经费拨款 | G49: C18040102_财产保险服务 | H49: 服务 | K49: 万元 | L49: 0.4063 | M49: 1 | N49: 0.4063 | R49: 0.4063 | AS49: 其他
